fUSD/lending_fUSD_20260701
["ID","MTS","AMOUNT","RATE_DAILY","PERIOD"]
[426824150,1782910239000,-500.0,0.00014404,2]
[426824142,1782910239000,-344.86487342,0.00014404,2]
[426824132,1782910239000,-8689.71059662,0.0001439,2]
[426824157,1782910239000,-500.0,0.00014404,2]
[426824154,1782910239000,-500.0,0.00014404,2]
[426824159,1782910239000,-1026.41,0.00014404,2]
[426824155,1782910239000,-500.0,0.00014404,2]
[426824152,1782910239000,-500.0,0.00014404,2]
[426824153,1782910239000,-304.26545713,0.00014404,2]
[426824160,1782910239000,-1026.41,0.00014404,2]
[426824156,1782910239000,-500.0,0.00014404,2]
[426824133,1782910239000,-1243.6607763,0.000144,2]
[426824158,1782910239000,-1026.41,0.00014404,2]
[426824161,1782910239000,-1026.41,0.00014404,2]
[426824163,1782910239000,-166.15,0.00014498,2]
[426824176,1782910239000,-1980.98416378,0.000149,2]
[426824151,1782910239000,-500.0,0.00014404,2]
[426824137,1782910239000,-500.0,0.00014404,2]
[426824134,1782910239000,-800.0,0.000144,5]
[426824135,1782910239000,-161.57115454,0.00014403,2]
[426824114,1782910239000,-226.17647426,0.00014203,2]
[426824113,1782910239000,-400.42473425,0.00014203,2]
[426824111,1782910239000,-500.0,0.00014203,2]
[426824112,1782910239000,-500.0,0.00014203,2]
[426824110,1782910239000,-178.9487968,0.00014203,2]
[426824108,1782910239000,-500.0,0.00014203,2]
[426824109,1782910239000,-601.65922846,0.00014203,2]
[426824116,1782910239000,-43087.1815,0.00014204,2]
[426824115,1782910239000,-158.32353198,0.00014203,2]
[426824123,1782910239000,-197.40334,0.00014299,2]
[426824124,1782910239000,-255.64113828,0.00014303,2]
[426824126,1782910239000,-33357.4706,0.00014304,2]
[426824118,1782910239000,-2590.15954094,0.0001421,2]
[426824117,1782910239000,-20037.4309,0.00014204,2]
[426824120,1782910239000,-3189.11194916,0.0001428,2]
[426824127,1782910239000,-2000.0,0.00014304,2]
[426824122,1782910239000,-9267.46806466,0.00014286,2]
[426824125,1782910239000,-500.0,0.00014303,2]
[426824128,1782910239000,-2500.0,0.00014304,2]
[426824165,1782910239000,-1497.62,0.00014504,2]
[426824136,1782910239000,-1027.02437262,0.00014403,5]
[426824129,1782910239000,-185.69536433,0.00014332,2]
[426824130,1782910239000,-185.69536432,0.00014332,2]
[426824141,1782910239000,-500.0,0.00014404,2]
[426824138,1782910239000,-340.8690979,0.00014404,2]
[426824140,1782910239000,-500.0,0.00014404,2]
[426824175,1782910239000,-434.25575529,0.000149,2]
[426824149,1782910239000,-500.0,0.00014404,2]
[426824166,1782910239000,-5836.96,0.00014504,2]
[426824199,1782910239000,-1026.41,0.00014999,2]
[426824196,1782910239000,-500.0,0.00014999,2]
[426824197,1782910239000,-1173.7,0.00014999,2]
[426824200,1782910239000,-1026.41,0.00014999,2]
[426824198,1782910239000,-500.0,0.00014999,2]
[426824201,1782910239000,-1026.41,0.00014999,2]
[426824205,1782910239000,-1026.41,0.00014999,2]
[426824216,1782910239000,-1026.41,0.00014999,2]
[426824215,1782910239000,-1026.41,0.00014999,2]
[426824206,1782910239000,-1026.41,0.00014999,2]
[426824207,1782910239000,-1026.41,0.00014999,2]
[426824214,1782910239000,-1026.41,0.00014999,2]
[426824211,1782910239000,-1026.41,0.00014999,2]
[426824204,1782910239000,-1026.41,0.00014999,2]
[426824212,1782910239000,-1026.41,0.00014999,2]
[426824208,1782910239000,-1026.41,0.00014999,2]
[426824209,1782910239000,-1026.41,0.00014999,2]
[426824213,1782910239000,-1026.41,0.00014999,2]
[426824210,1782910239000,-1026.41,0.00014999,2]
[426824218,1782910239000,-1026.41,0.00014999,2]
[426824224,1782910239000,-501.22471475,0.00015,2]
[426824167,1782910239000,-150.99,0.00014504,2]
[426824223,1782910239000,-15629.88146003,0.00015,2]
[426824222,1782910239000,-28467.77665768,0.00015,2]
[426824221,1782910239000,-8244832.08657566,0.00015,2]
[426824195,1782910239000,-500.0,0.00014999,2]
[426824194,1782910239000,-500.0,0.00014999,2]
[426824220,1782910239000,-1026.45669103,0.00014999,2]
[426824193,1782910239000,-500.0,0.00014999,2]
[426824191,1782910239000,-500.0,0.00014999,2]
[426824164,1782910239000,-1200.0,0.000145,5]
[426824169,1782910239000,-1700.0,0.000146,5]
[426824170,1782910239000,-837.2630566,0.00014661,2]
[426824174,1782910239000,-837.2630566,0.000149,2]
[426824171,1782910239000,-2100.0,0.000147,5]
[426824172,1782910239000,-400.0,0.000148,5]
[426824173,1782910239000,-400.0,0.000149,5]
[426824168,1782910239000,-794.26,0.000146,2]
[426824177,1782910239000,-197.3030707,0.00014925,2]
[426824179,1782910239000,-320.17428722,0.0001499,2]
[426824182,1782910239000,-500.0,0.00014999,2]
[426824181,1782910239000,-500.0,0.00014999,2]
[426824162,1782910239000,-837.26305661,0.00014421,2]
[426824180,1782910239000,-320.17428722,0.0001499,2]
[426824203,1782910239000,-1026.41,0.00014999,2]
[426824202,1782910239000,-1026.41,0.00014999,2]
[426824189,1782910239000,-500.0,0.00014999,2]
[426824188,1782910239000,-500.0,0.00014999,2]
[426824183,1782910239000,-500.0,0.00014999,2]
[426824192,1782910239000,-500.0,0.00014999,2]
[426824185,1782910239000,-500.0,0.00014999,2]
[426824184,1782910239000,-500.0,0.00014999,2]
[426824186,1782910239000,-500.0,0.00014999,2]
[426824187,1782910239000,-520.63139232,0.00014999,2]
[426824178,1782910239000,-320.17428722,0.0001499,2]
[426824190,1782910239000,-500.0,0.00014999,2]
[426824228,1782910240000,-1831.05925241,0.00015,2]
[426824227,1782910240000,-5612.9582715,0.00015,2]
[426824225,1782910240000,-280.67633615,0.00014461,2]
[426824226,1782910240000,-8986.79172851,0.00014461,2]
[426824249,1782910243000,-2335.56,0.00015,2]
[426824248,1782910243000,-420.0,0.00015,2]
[426824255,1782910244000,400.0,0.00030137,30]
[426824261,1782910246000,-175.05929613,0.00014549,2]
[426824259,1782910246000,-443.97,0.00014549,2]
[426824262,1782910246000,-37704.93514741,0.00015,2]
[426824260,1782910246000,-8648.43876853,0.00014549,2]
[426824263,1782910247000,-440.20000001,0.00015,2]
[426824264,1782910247000,-2747.51249313,0.00015,2]
[426824289,1782910345000,-9267.46806466,0.00014637,2]
[426824290,1782910345000,-151.0,0.00014637,2]
[426824288,1782910345000,-2500.0,0.00014304,2]
[426824285,1782910345000,-33357.4706,0.00014304,2]
[426824286,1782910345000,-151.0,0.00014304,2]
[426824284,1782910345000,-8599.8279,0.00014104,2]
[426824287,1782910345000,-2000.0,0.00014304,2]
[426824283,1782910345000,-200.0,0.000139,5]
[426824280,1782910345000,-1027.02437262,0.00013799,5]
[426824282,1782910345000,-150.0,0.000138,2]
[426824277,1782910345000,-153.0,0.00013698,2]
[426824276,1782910345000,-786.026386,0.00013629,2]
[426824279,1782910345000,-500.0,0.00013698,2]
[426824278,1782910345000,-151.0,0.00013698,2]
[426824291,1782910345000,-884.0,0.00014637,2]
[426824281,1782910345000,-947201.1094,0.000138,2]
[426824293,1782910345000,-600.0,0.00014681,2]
[426824294,1782910345000,-9267.46806466,0.00014724,2]
[426824308,1782910345000,-171.0,0.00015,2]
[426824306,1782910345000,-596.79,0.00015,2]
[426824309,1782910345000,-172.60020592,0.00015,2]
[426824307,1782910345000,-1012535.95485924,0.00015,2]
[426824305,1782910345000,-35323.47754167,0.00015,2]
[426824303,1782910345000,-600.0,0.000149,5]
[426824292,1782910345000,-906.0,0.00014637,2]
[426824304,1782910345000,-150.0,0.00014999,2]
[426824297,1782910345000,-600.0,0.00014891,2]
[426824300,1782910345000,-273.77786137,0.000149,2]
[426824299,1782910345000,-9267.46806466,0.000149,2]
[426824296,1782910345000,-9267.46806466,0.00014812,2]
[426824298,1782910345000,-600.0,0.00014891,2]
[426824295,1782910345000,-400.0,0.000148,5]
[426824301,1782910345000,-10666.48754728,0.000149,2]
[426824302,1782910345000,-2088.05731591,0.000149,2]
[426824311,1782910357000,407.533733,0.00014299,2]
[426824313,1782910358000,151.0,0.00013629,2]
[426824312,1782910358000,271.679156,0.00030135,120]
[426824315,1782910362000,174.22,0.00029232,30]
[426824316,1782910364000,50644.9033,0.00014104,2]
[426824317,1782910366000,151.0,0.00014894,2]
[426824318,1782910369000,375.71207082,0.00014827,2]
[426824319,1782910369000,151.0,0.00014894,2]
[426824320,1782910381000,1752.9489647,0.00014449,2]
[426824321,1782910421000,33357.4706,0.000137,2]
[426824323,1782910423000,1026.41,0.00014999,2]
[426824322,1782910423000,1026.41,0.00014504,2]
[426824327,1782910424000,1026.41,0.00014999,2]
[426824326,1782910424000,1026.41,0.00014999,2]
[426824325,1782910424000,1026.41,0.00014999,2]
[426824324,1782910424000,1026.41,0.00014999,2]
[426824328,1782910425000,1026.41,0.00014999,2]
[426824330,1782910425000,1026.41,0.00014999,2]
[426824329,1782910425000,1026.41,0.00014999,2]
[426824332,1782910426000,1026.41,0.00014999,2]
[426824331,1782910426000,1026.41,0.00014999,2]
[426824335,1782910427000,1026.41,0.00014999,2]
[426824334,1782910427000,1026.41,0.00014999,2]
[426824333,1782910427000,1026.41,0.00014999,2]
[426824336,1782910428000,1026.41,0.00014999,2]
[426824338,1782910428000,1026.41,0.00014999,2]
[426824337,1782910428000,500.0,0.00014404,2]
[426824339,1782910428000,500.0,0.00014404,2]
[426824341,1782910428000,500.0,0.00014404,2]
[426824342,1782910428000,1026.41,0.00014999,2]
[426824340,1782910428000,1026.41,0.00014999,2]
[426824346,1782910429000,1026.41,0.00014999,2]
[426824345,1782910429000,1026.41,0.00014999,2]
[426824344,1782910429000,1026.41,0.00014999,2]
[426824343,1782910429000,500.0,0.00014404,2]
[426824347,1782910430000,1026.41,0.00014999,2]
[426824349,1782910431000,1026.45669103,0.00014999,2]
[426824348,1782910431000,1026.41,0.00014999,2]
[426824350,1782910448000,471.96,0.00013153,2]
[426824351,1782910451000,2000.0,0.000137,2]
[426824352,1782910458000,794.26,0.000146,2]
[426824353,1782910463000,3194.8901,0.000137,2]
[426824354,1782910470000,20037.4309,0.000137,2]
[426824355,1782910476000,2500.0,0.000137,2]
[426824357,1782910512000,6402.1066,0.000137,2]
[426824359,1782910513000,500.0,0.00014404,2]
[426824358,1782910513000,500.0,0.00014404,2]
[426824361,1782910514000,500.0,0.00014404,2]
[426824360,1782910514000,500.0,0.00014404,2]
[426824362,1782910518000,500.0,0.00014404,2]
[426824363,1782910520000,153.0,0.0003,30]
[426824364,1782910521000,153.0,0.0003,30]
[426824365,1782910521000,153.0,0.0003,30]
[426824366,1782910524000,151.0,0.0003,30]
[426824367,1782910525000,151.0,0.0003,30]
[426824369,1782910526000,151.0,0.0003,30]
[426824368,1782910526000,151.0,0.0003,30]
[426824371,1782910527000,151.0,0.0003,30]
[426824370,1782910527000,151.0,0.0003,30]
[426824372,1782910528000,151.0,0.0003,30]
[426824374,1782910529000,151.0,0.0003,30]
[426824373,1782910529000,151.0,0.0003,30]
[426824376,1782910530000,151.0,0.0003,30]
[426824375,1782910530000,151.0,0.0003,30]
[426824377,1782910531000,151.0,0.0003,30]
[426824378,1782910535000,151.0,0.0003,30]
[426824379,1782910536000,151.0,0.0003,30]
[426824380,1782910537000,151.0,0.0003,30]
[426824381,1782910537000,151.0,0.0003,30]
[426824383,1782910538000,151.0,0.0003,30]
[426824382,1782910538000,151.0,0.0003,30]
[426824384,1782910539000,151.0,0.0003,30]
[426824385,1782910540000,151.0,0.0003,30]
[426824386,1782910541000,151.0,0.0003,30]
[426824387,1782910543000,33357.4706,0.000137,2]
[426824388,1782910593000,1173.7,0.00014999,2]
[426824393,1782910648000,500.0,0.00014404,2]
[426824394,1782910649000,521.04204183,0.00014404,2]
[426824395,1782910683000,4606.95,0.00029834,30]
[426824396,1782910683000,250.0,0.00025821,30]
[426824397,1782910765000,1505.5124481,0.00014449,2]
[426824398,1782910798000,304.26545713,0.00014504,2]
[426824399,1782910803000,450.0,0.00019066,30]
[426824401,1782910821000,235.0,0.0003,30]
[426824400,1782910821000,153.0,0.0003,30]
[426824402,1782910822000,153.0,0.0003,30]
[426824403,1782910823000,153.0,0.0003,30]
[426824405,1782910824000,153.0,0.0003,30]
[426824404,1782910824000,153.0,0.0003,30]
[426824406,1782910825000,153.0,0.0003,30]
[426824407,1782910826000,153.0,0.0003,30]
[426824408,1782910826000,153.0,0.0003,30]
[426824409,1782910827000,153.0,0.0003,30]
[426824410,1782910828000,153.0,0.0003,30]
[426824411,1782910834000,151.0,0.0003,30]
[426824412,1782910835000,151.0,0.0003,30]
[426824413,1782910846000,152.0,0.0003,30]
[426824414,1782910851000,166.0,0.0003,30]
[426824415,1782910852000,166.0,0.0003,30]
[426824416,1782910853000,166.0,0.0003,30]
[426824426,1782911024000,1505.5124482,0.00014449,2]
[426824427,1782911066000,96712.8432459,0.00014449,2]
[426824435,1782911144000,400.0,0.00024534,30]
[426824442,1782911222000,3871.12,0.00029934,30]
[426824448,1782911239000,543.75605563,0.00030137,30]
[426824459,1782911297000,189.45,0.00030136,30]
[426824460,1782911298000,634.76353289,0.0003,30]
[426824461,1782911340000,2000.0,0.00030136,30]
[426824463,1782911341000,2000.0,0.00028491,60]
[426824462,1782911341000,2000.0,0.00030134,120]
[426824469,1782911373000,189.46,0.00030136,30]
[426824502,1782911432000,-151.0,0.00015041,2]
[426824509,1782911432000,-151.0,0.00015041,2]
[426824510,1782911432000,-150.0,0.00015041,2]
[426824507,1782911432000,-50.85004551,0.00015041,2]
[426824503,1782911432000,-150.0,0.00015041,2]
[426824505,1782911432000,-152.0,0.00015041,2]
[426824501,1782911432000,-150.0,0.00015041,2]
[426824498,1782911432000,-151.0,0.00015041,2]
[426824506,1782911432000,-151.0,0.00015041,2]
[426824511,1782911432000,-8272.6,0.00015041,2]
[426824504,1782911432000,-150.0,0.00015041,2]
[426824500,1782911432000,-150.0,0.00015041,2]
[426824495,1782911432000,-150.0,0.00015041,2]
[426824499,1782911432000,-151.0,0.00015041,2]
[426824496,1782911432000,-151.0,0.00015041,2]
[426824508,1782911432000,-100.14995449,0.00015041,2]
[426824493,1782911432000,-151.0,0.00015041,2]
[426824494,1782911432000,-151.0,0.00015041,2]
[426824497,1782911432000,-151.0,0.00015041,2]
[426824492,1782911432000,-151.0,0.00015041,2]
[426824490,1782911432000,-136.22066249,0.00015041,2]
[426824488,1782911432000,-151.0,0.00015041,2]
[426824487,1782911432000,-150.0,0.00015041,2]
[426824485,1782911432000,-300.0,0.0001504,2]
[426824489,1782911432000,-13.77933751,0.00015041,2]
[426824486,1782911432000,-150.0,0.00015041,2]
[426824491,1782911432000,-151.0,0.00015041,2]
[426824515,1782911432000,-500.0,0.00015061,2]
[426824513,1782911432000,-383.80850754,0.00015061,2]
[426824522,1782911432000,-500.0,0.00015061,2]
[426824518,1782911432000,-500.0,0.00015061,2]
[426824563,1782911432000,-278.98617003,0.00015061,2]
[426824565,1782911432000,-500.0,0.00015061,2]
[426824566,1782911432000,-146.29019566,0.00015061,2]
[426824564,1782911432000,-500.0,0.00015061,2]
[426824561,1782911432000,-221.01382997,0.00015061,2]
[426824549,1782911432000,-364.17059636,0.00015061,2]
[426824551,1782911432000,-135.82940364,0.00015061,2]
[426824557,1782911432000,-266.31382997,0.00015061,2]
[426824555,1782911432000,-500.0,0.00015061,2]
[426824547,1782911432000,-163.95058395,0.00015061,2]
[426824553,1782911432000,-500.0,0.00015061,2]
[426824540,1782911432000,-500.0,0.00015061,2]
[426824559,1782911432000,-233.68617003,0.00015061,2]
[426824538,1782911432000,-500.0,0.00015061,2]
[426824517,1782911432000,-320.46312307,0.00015061,2]
[426824544,1782911432000,-336.04941605,0.00015061,2]
[426824516,1782911432000,-300.0,0.00015061,2]
[426824519,1782911432000,-500.0,0.00015061,2]
[426824520,1782911432000,-440.83777201,0.00015061,2]
[426824534,1782911432000,-165.44017649,0.00015061,2]
[426824532,1782911432000,-500.0,0.00015061,2]
[426824530,1782911432000,-500.0,0.00015061,2]
[426824528,1782911432000,-500.0,0.00015061,2]
[426824526,1782911432000,-500.0,0.00015061,2]
[426824536,1782911432000,-334.55982351,0.00015061,2]
[426824542,1782911432000,-500.0,0.00015061,2]
[426824524,1782911432000,-500.0,0.00015061,2]
[426824585,1782911433000,-500.0,0.00015061,2]
[426824587,1782911433000,-500.0,0.00015061,2]
[426824586,1782911433000,-500.0,0.00015061,2]
[426824584,1782911433000,-500.0,0.00015061,2]
[426824595,1782911433000,-500.0,0.00015061,2]
[426824588,1782911433000,-500.0,0.00015061,2]
[426824590,1782911433000,-500.0,0.00015061,2]
[426824593,1782911433000,-500.0,0.00015061,2]
[426824589,1782911433000,-500.0,0.00015061,2]
[426824592,1782911433000,-500.0,0.00015061,2]
[426824591,1782911433000,-500.0,0.00015061,2]
[426824582,1782911433000,-500.0,0.00015061,2]
[426824594,1782911433000,-500.0,0.00015061,2]
[426824571,1782911433000,-500.0,0.00015061,2]
[426824568,1782911433000,-500.0,0.00015061,2]
[426824580,1782911433000,-500.0,0.00015061,2]
[426824581,1782911433000,-500.0,0.00015061,2]
[426824578,1782911433000,-500.0,0.00015061,2]
[426824577,1782911433000,-500.0,0.00015061,2]
[426824573,1782911433000,-500.0,0.00015061,2]
[426824574,1782911433000,-500.0,0.00015061,2]
[426824583,1782911433000,-500.0,0.00015061,2]
[426824576,1782911433000,-412.94540612,0.00015061,2]
[426824575,1782911433000,-500.0,0.00015061,2]
[426824572,1782911433000,-319.6481798,0.00015061,2]
[426824570,1782911433000,-500.0,0.00015061,2]
[426824569,1782911433000,-500.0,0.00015061,2]
[426824567,1782911433000,-353.70980434,0.00015061,2]
[426824579,1782911433000,-500.0,0.00015061,2]
[426824598,1782911433000,-387.23771488,0.00015061,2]
[426824596,1782911433000,-500.0,0.00015061,2]
[426824606,1782911433000,-152.0,0.00015066,2]
[426824602,1782911433000,-151.0,0.00015066,2]
[426824627,1782911433000,-2054.31,0.00015067,2]
[426824623,1782911433000,-500.0,0.00015066,2]
[426824626,1782911433000,-1358.3947167,0.00015067,2]
[426824625,1782911433000,-455.51738182,0.00015067,2]
[426824624,1782911433000,-161.57115454,0.00015067,2]
[426824621,1782911433000,-500.0,0.00015066,2]
[426824613,1782911433000,-500.0,0.00015066,2]
[426824619,1782911433000,-491.42664605,0.00015066,2]
[426824620,1782911433000,-180.18637999,0.00015066,2]
[426824612,1782911433000,-500.0,0.00015066,2]
[426824618,1782911433000,-500.0,0.00015066,2]
[426824617,1782911433000,-202.60270696,0.00015066,2]
[426824614,1782911433000,-337.67898955,0.00015066,2]
[426824628,1782911433000,-4492.56,0.00015067,2]
[426824611,1782911433000,-152.0,0.00015066,2]
[426824597,1782911433000,-500.0,0.00015061,2]
[426824599,1782911433000,-500.0,0.00015061,2]
[426824601,1782911433000,-150.0,0.00015065,2]
[426824600,1782911433000,-500.0,0.00015061,2]
[426824622,1782911433000,-500.0,0.00015066,2]
[426824604,1782911433000,-151.0,0.00015066,2]
[426824607,1782911433000,-151.0,0.00015066,2]
[426824603,1782911433000,-151.0,0.00015066,2]
[426824608,1782911433000,-152.0,0.00015066,2]
[426824605,1782911433000,-151.0,0.00015066,2]
[426824610,1782911433000,-150.0,0.00015066,2]
[426824616,1782911433000,-381.66340848,0.00015066,2]
[426824615,1782911433000,-451.96405185,0.00015066,2]
[426824609,1782911433000,-151.0,0.00015066,2]
[426824672,1782911434000,-910.0,0.00015068,2]
[426824669,1782911434000,-895.0,0.00015068,2]
[426824668,1782911434000,-151.0,0.00015068,2]
[426824673,1782911434000,-153.0,0.00015068,2]
[426824671,1782911434000,-150.0,0.00015068,2]
[426824654,1782911434000,-250.0,0.00015068,2]
[426824663,1782911434000,-891.0,0.00015068,2]
[426824662,1782911434000,-151.0,0.00015068,2]
[426824664,1782911434000,-150.0,0.00015068,2]
[426824661,1782911434000,-890.0,0.00015068,2]
[426824666,1782911434000,-150.0,0.00015068,2]
[426824665,1782911434000,-914.0,0.00015068,2]
[426824670,1782911434000,-895.0,0.00015068,2]
[426824677,1782911434000,-150.0,0.00015068,2]
[426824681,1782911434000,-150.99,0.00015068,2]
[426824682,1782911434000,-9827.83989564,0.00015503,2]
[426824683,1782911434000,-10467.23936533,0.0001554,2]
[426824684,1782911434000,-190.05,0.000156,2]
[426824676,1782911434000,-889.0,0.00015068,2]
[426824685,1782911434000,-503.53,0.00015602,2]
[426824674,1782911434000,-908.0,0.00015068,2]
[426824678,1782911434000,-886.0,0.00015068,2]
[426824679,1782911434000,-914.0,0.00015068,2]
[426824680,1782911434000,-151.0,0.00015068,2]
[426824686,1782911434000,-166.15,0.00015603,2]
[426824687,1782911434000,-45401.83,0.00015603,2]
[426824657,1782911434000,-916.0,0.00015068,2]
[426824675,1782911434000,-152.0,0.00015068,2]
[426824656,1782911434000,-915.0,0.00015068,2]
[426824645,1782911434000,-150.0,0.00015068,2]
[426824658,1782911434000,-151.0,0.00015068,2]
[426824633,1782911434000,-891.0,0.00015067,2]
[426824634,1782911434000,-150.0,0.00015067,2]
[426824635,1782911434000,-911.0,0.00015067,2]
[426824632,1782911434000,-152.0,0.00015067,2]
[426824631,1782911434000,-906.0,0.00015067,2]
[426824630,1782911434000,-153.0,0.00015067,2]
[426824629,1782911434000,-889.0,0.00015067,2]
[426824647,1782911434000,-152.0,0.00015068,2]
[426824638,1782911434000,-299.99,0.00015068,2]
[426824640,1782911434000,-151.0,0.00015068,2]
[426824637,1782911434000,-9999.99,0.00015068,2]
[426824636,1782911434000,-500.0,0.00015067,2]
[426824642,1782911434000,-151.0,0.00015068,2]
[426824641,1782911434000,-151.0,0.00015068,2]
[426824688,1782911434000,-5836.96,0.00015603,2]
[426824639,1782911434000,-151.0,0.00015068,2]
[426824643,1782911434000,-151.0,0.00015068,2]
[426824644,1782911434000,-151.0,0.00015068,2]
[426824646,1782911434000,-904.0,0.00015068,2]
[426824659,1782911434000,-911.0,0.00015068,2]
[426824649,1782911434000,-890.0,0.00015068,2]
[426824660,1782911434000,-151.0,0.00015068,2]
[426824648,1782911434000,-151.0,0.00015068,2]
[426824650,1782911434000,-888.0,0.00015068,2]
[426824651,1782911434000,-896.0,0.00015068,2]
[426824653,1782911434000,-914.0,0.00015068,2]
[426824655,1782911434000,-151.0,0.00015068,2]
[426824652,1782911434000,-151.0,0.00015068,2]
[426824689,1782911434000,-999.99,0.00015603,2]
[426824667,1782911434000,-912.0,0.00015068,2]
[426824692,1782911434000,-2281.67607172,0.00015807,2]
[426824733,1782911434000,-500.0,0.00016438,2]
[426824724,1782911434000,-500.0,0.00016438,2]
[426824734,1782911434000,-500.0,0.00016438,2]
[426824725,1782911434000,-500.0,0.00016438,2]
[426824722,1782911434000,-500.0,0.00016438,2]
[426824726,1782911434000,-500.0,0.00016438,2]
[426824727,1782911434000,-500.0,0.00016438,2]
[426824729,1782911434000,-500.0,0.00016438,2]
[426824732,1782911434000,-500.0,0.00016438,2]
[426824728,1782911434000,-500.0,0.00016438,2]
[426824731,1782911434000,-500.0,0.00016438,2]
[426824736,1782911434000,-500.0,0.00016438,2]
[426824735,1782911434000,-500.0,0.00016438,2]
[426824723,1782911434000,-500.0,0.00016438,2]
[426824737,1782911434000,-500.0,0.00016438,2]
[426824746,1782911434000,-500.0,0.00016438,2]
[426824739,1782911434000,-500.0,0.00016438,2]
[426824744,1782911434000,-500.0,0.00016438,2]
[426824740,1782911434000,-500.0,0.00016438,2]
[426824747,1782911434000,-500.0,0.00016438,2]
[426824741,1782911434000,-500.0,0.00016438,2]
[426824743,1782911434000,-500.0,0.00016438,2]
[426824742,1782911434000,-500.0,0.00016438,2]
[426824745,1782911434000,-500.0,0.00016438,2]
[426824748,1782911434000,-500.0,0.00016438,2]
[426824749,1782911434000,-500.0,0.00016438,2]
[426824751,1782911434000,-500.0,0.00016438,2]
[426824694,1782911434000,-169.56,0.00015934,2]
[426824738,1782911434000,-500.0,0.00016438,2]
[426824721,1782911434000,-500.0,0.00016438,2]
[426824730,1782911434000,-500.0,0.00016438,2]
[426824718,1782911434000,-500.0,0.00016438,2]
[426824695,1782911434000,-164.64,0.00015946,2]
[426824693,1782911434000,-200.0,0.0001581,2]
[426824690,1782911434000,-2830.04,0.00015603,2]
[426824696,1782911434000,-150.0,0.00015966,2]
[426824691,1782911434000,-548.55,0.00015616,2]
[426824719,1782911434000,-500.0,0.00016438,2]
[426824699,1782911434000,-164.93950361,0.00016093,2]
[426824709,1782911434000,-185.69536433,0.00016356,2]
[426824698,1782911434000,-150.0,0.00016029,2]
[426824710,1782911434000,-185.69536432,0.00016356,2]
[426824700,1782911434000,-340.23,0.000161,2]
[426824706,1782911434000,-275.94517961,0.00016317,2]
[426824705,1782911434000,-164.93950361,0.00016293,2]
[426824704,1782911434000,-164.93950361,0.00016193,2]
[426824697,1782911434000,-503.53,0.00015992,2]
[426824703,1782911434000,-510.0,0.00016168,2]
[426824717,1782911434000,-500.0,0.00016438,2]
[426824708,1782911434000,-200.0,0.0001634,2]
[426824714,1782911434000,-500.0,0.00016438,2]
[426824720,1782911434000,-500.0,0.00016438,2]
[426824715,1782911434000,-500.0,0.00016438,2]
[426824712,1782911434000,-503.53,0.00016382,2]
[426824713,1782911434000,-570.91242587,0.0001643,2]